[Event "CHN-ch Open 2019"]
[Site "Xinghua"]
[Date "2019.05.11"]
[Round "1.6"]
[White "Bai, Jinshi"]
[Black "Xu, Yinglun"]
[Result "1/2-1/2"]
[ECO "E06"]
[WhiteElo "2605"]
[BlackElo "2528"]
[Annotator "RC"]
[PlyCount "58"]
[EventDate "2019.05.11"]
[EventType "tourn"]
[EventCountry "CHN"]
[SourceTitle "playchess.com"]
[Source "ChessBase"]
[SourceQuality "1"]
[TimeControl "5400+30"]

1. d4 {[%emt 0:00:00]} d5 {[%emt 0:00:00]} 2. c4 {[%emt 0:00:01]} e6 {[%emt 0:00:07]} 3. Nc3 {[%emt 0:02:10]} Be7 {[%emt 0:00:41]} 4. Nf3 {[%emt 0:00:20]} Nf6 {[%emt 0:00:08]} 5. g3 {[%emt 0:02:25]} O-O {[%emt 0:03:34]} 6. Bg2 {[%emt 0:00:09]} dxc4 {[%emt 0:00:18]} 7. Ne5 {[%emt 0:01:34]} c5 {[%emt 0:00:24]} 8. dxc5 {[%emt 0:02:18]} Qxd1+ {[%emt 0:00:26]} 9. Nxd1 {[%emt 0:00:08]} Bxc5 {[%emt 0:00:12]} 10. Bd2 {[%emt 0:05:13]} Nc6 {[%emt 0:03:20]} 11. Nxc4 {[%emt 0:00:15]} Bd7 {[%emt 0:01:41]} 12. Rc1 {[%emt 0:07:55]} Rac8 {[%emt 0:03:23]} 13. Nc3 {[%emt 0:03:30]} Rfd8 {[%emt 0:07:58]} 14. O-O {[%emt 0:04:15]} Be7 {[%emt 0:00:48]} 15. b3 {[%emt 0:04:45]} Be8 {[%emt 0:03:28]} 16. Rfd1 {[%emt 0:03:49]} b6 {[%emt 0:00:36]} 17. Be1 {[%emt 0:11:21]} Rxd1 {[%emt 0:03:40]} 18. Rxd1 {[%emt 0:00:07]} Rd8 {[%emt 0:00:04]} 19. Rxd8 {[%emt 0:00:59]} Nxd8 {[%emt 0:00:10]} 20. f4 {[%emt 0:02:08]} Kf8 {[%emt 0:00:24]} 21. e4 {[%emt 0:02:32]} Bc5+ {[%emt 0:01:12]} 22. Bf2 {[%emt 0:01:04]} Bb4 {[%emt 0:02:56]} 23. Be1 {[%emt 0:05:34]} Bc5+ {[%emt 0:00:05]} 24. Bf2 {[%emt 0:03:13]} Bb4 {[%emt 0:00:05]} 25. Be1 {[%emt 0:00:46]} Bc5+ {[%emt 0:00:04]} 26. Bf2 {[%emt 0:00:32]} Bb4 {[%emt 0:00:10]} 27. Be1 {[%emt 0:00:05]} Bc5+ {[%emt 0:00:04]} 28. Bf2 {[%emt 0:00:04]} Bb4 {[%emt 0:00:04]} 29. Be1 {[%emt 0:00:15]} Bc5+ {[%emt 0:00:03]} 1/2-1/2

[Event "CHN-ch Open 2019"]
[Site "Xinghua"]
[Date "2019.05.15"]
[Round "5.2"]
[White "Zhao, Yuanhe"]
[Black "Lu, Shanglei"]
[Result "0-1"]
[ECO "A05"]
[WhiteElo "2437"]
[BlackElo "2606"]
[Annotator "RC"]
[PlyCount "102"]
[EventDate "2019.05.11"]
[EventType "tourn"]
[EventCountry "CHN"]
[SourceTitle "playchess.com"]
[Source "ChessBase"]
[SourceQuality "1"]
[TimeControl "5400+30"]

1. Nf3 {[%emt 0:00:00]} Nf6 {[%emt 0:00:00]} 2. g3 {[%emt 0:00:00]} b5 {[%emt 0:00:00]} 3. Bg2 {[%emt 0:01:08]} Bb7 {[%emt 0:00:09]} 4. O-O {[%emt 0:00:29]} g6 {[%emt 0:00:03]} 5. b3 {[%emt 0:03:20]} Bg7 {[%emt 0:01:38]} 6. Bb2 {[%emt 0:00:05]} c5 {[%emt 0:00:20]} 7. c4 {[%emt 0:01:16]} Qb6 {[%emt 0:03:47]} 8. Nc3 {[%emt 0:07:18]} bxc4 {[%emt 0:05:26]} 9. bxc4 {[%emt 0:00:40]} O-O {[%emt 0:00:32]} 10. Rb1 {[%emt 0:13:06]} Qa6 {[%emt 0:03:53]} 11. Ba3 {[%emt 0:15:11]} d6 {[%emt 0:06:05]} 12. Rxb7 {[%emt 0:15:43]} Qxb7 {[%emt 0:00:17]} 13. Ne5 {[%emt 0:00:05]} Qa6 {[%emt 0:00:44]} 14. Qc1 {[%emt 0:03:06]} dxe5 {[%emt 0:05:16]} 15. Bxa8 {[%emt 0:00:08]} Qxc4 {[%emt 0:04:30]} 16. Bf3 {[%emt 0:04:36]} Nbd7 {[%emt 0:04:00]} 17. Qc2 {[%emt 0:04:51]} Rb8 {[%emt 0:02:39]} 18. Rc1 {[%emt 0:03:07]} e6 {[%emt 0:03:28]} 19. Qa4 {[%emt 0:06:46]} Qxa4 {[%emt 0:04:30]} 20. Nxa4 {[%emt 0:00:06]} Bf8 {[%emt 0:00:23]} 21. d3 {[%emt 0:02:53]} Rb5 {[%emt 0:03:02]} 22. Nc3 {[%emt 0:05:06]} Ra5 {[%emt 0:01:34]} 23. Bb2 {[%emt 0:00:04]} Nb6 {[%emt 0:00:26]} 24. g4 {[%emt 0:04:20]} Bd6 {[%emt 0:07:00]} 25. g5 {[%emt 0:00:51]} Nfd5 {[%emt 0:00:57]} 26. Ne4 {[%emt 0:01:58]} Rxa2 {[%emt 0:00:10]} 27. Ba1 {[%emt 0:00:50]} Bc7 {[%emt 0:08:21]} 28. Nxc5 {[%emt 0:00:07]} Kf8 {[%emt 0:02:21]} 29. e3 {[%emt 0:03:40]} Ke7 {[%emt 0:18:06]} 30. Ne4 {[%emt 0:00:30]} Nd7 {[%emt 0:01:21]} 31. h4 {[%emt 0:03:19]} a5 {[%emt 0:01:24]} 32. d4 {[%emt 0:00:42]} Bb6 {[%emt 0:03:12]} 33. dxe5 {[%emt 0:00:36]} Nxe3 {[%emt 0:00:10]} 34. Nf6 {[%emt 0:00:27]} Nf5 {[%emt 0:00:48]} 35. Rd1 {[%emt 0:00:34]} Nb8 {[%emt 0:03:11]} 36. Rb1 {[%emt 0:00:05]} Bxf2+ {[%emt 0:01:56]} 37. Kh1 {[%emt 0:00:05]} Bc5 {[%emt 0:00:09]} 38. Rb7+ {[%emt 0:00:30]} Kd8 {[%emt 0:00:03]} 39. Rxb8+ {[%emt 0:00:06]} Kc7 {[%emt 0:00:06]} 40. Rb7+ {[%emt 0:00:04]} Kc8 {[%emt 0:00:01]} 41. Bb2 {[%emt 0:00:06]} a4 {[%emt 0:00:45]} 42. Ne4 {[%emt 0:02:32]} a3 {[%emt 0:08:17]} 43. Bxa3 {[%emt 0:00:30]} Rxa3 {[%emt 0:00:00]} 44. Nxc5 {[%emt 0:00:29]} Rxf3 {[%emt 0:00:00]} 45. Ra7 {[%emt 0:00:20]} Rf4 {[%emt 0:00:00]} 46. Kg1 {[%emt 0:00:33]} Nxh4 {[%emt 0:00:00]} 47. Kh2 {[%emt 0:00:31]} Nf3+ {[%emt 0:00:00]} 48. Kg3 {[%emt 0:00:06]} Rf5 {[%emt 0:00:00]} 49. Ne4 {[%emt 0:00:50]} Kb8 {[%emt 0:00:00]} 50. Re7 {[%emt 0:00:28]} Nxg5 {[%emt 0:00:00]} 51. Nf6 {[%emt 0:00:11]} Kc8 {[%emt 0:00:00]} 0-1

[Event "CHN-ch Open 2019"]
[Site "Xinghua"]
[Date "2019.05.15"]
[Round "5.4"]
[White "Bai, Jinshi"]
[Black "Xu, Yi"]
[Result "1-0"]
[ECO "E51"]
[WhiteElo "2605"]
[BlackElo "2546"]
[Annotator "RC"]
[PlyCount "81"]
[EventDate "2019.05.11"]
[EventType "tourn"]
[EventCountry "CHN"]
[SourceTitle "playchess.com"]
[Source "ChessBase"]
[SourceQuality "1"]
[TimeControl "5400+30"]

1. d4 {[%emt 0:00:00]} Nf6 {[%emt 0:00:00]} 2. c4 {[%emt 0:00:00]} e6 {[%emt 0:00:00]} 3. Nf3 {[%emt 0:00:00]} d5 {[%emt 0:00:00]} 4. Nc3 {[%emt 0:00:11]} Bb4 {[%emt 0:00:00]} 5. Qa4+ {[%emt 0:00:17]} Nc6 {[%emt 0:00:00]} 6. e3 {[%emt 0:00:06]} O-O {[%emt 0:00:07]} 7. Qc2 {[%emt 0:00:14]} dxc4 {[%emt 0:02:00]} 8. Bxc4 {[%emt 0:00:06]} Bd6 {[%emt 0:00:21]} 9. O-O {[%emt 0:00:40]} e5 {[%emt 0:03:13]} 10. h3 {[%emt 1:33:26]} a6 {[%emt 0:03:14]} 11. a3 {[%emt 0:00:00]} b5 {[%emt 1:26:35]} 12. Ba2 {[%emt 0:00:00]} Bb7 {[%emt 0:00:00]} 13. d5 {[%emt 0:01:30]} Ne7 {[%emt 0:00:00]} 14. e4 {[%emt 0:00:30]} Rc8 {[%emt 0:00:00]} 15. Rd1 {[%emt 0:00:00]} h6 {[%emt 0:02:00]} 16. Be3 {[%emt 0:00:00]} Ng6 {[%emt 0:00:00]} 17. Qe2 {[%emt 0:00:00]} Qe7 {[%emt 0:01:00]} 18. g3 {[%emt 0:00:00]} c5 {[%emt 0:00:00]} 19. dxc6 {[%emt 0:00:00]} Bxc6 {[%emt 0:00:00]} 20. Nd5 {[%emt 0:00:00]} Bxd5 {[%emt 0:00:00]} 21. Bxd5 {[%emt 0:00:00]} Bc5 {[%emt 0:02:00]} 22. Rac1 {[%emt 0:00:00]} Bxe3 {[%emt 0:00:00]} 23. Qxe3 {[%emt 0:04:30]} Nxd5 {[%emt 0:00:00]} 24. Rxd5 {[%emt 0:00:00]} Qe6 {[%emt 0:00:00]} 25. Rxc8 {[%emt 0:00:00]} Rxc8 {[%emt 0:00:00]} 26. Kg2 {[%emt 0:00:00]} Kh7 {[%emt 0:00:00]} 27. Qa7 {[%emt 0:00:00]} Rc1 {[%emt 0:00:00]} 28. Qd7 {[%emt 0:00:00]} Qxd7 {[%emt 0:00:00]} 29. Rxd7 {[%emt 0:00:00]} Rc2 {[%emt 0:00:43]} 30. Rxf7 {[%emt 0:00:00]} Rxb2 {[%emt 0:00:03]} 31. h4 {[%emt 0:00:00]} Rb3 {[%emt 0:01:24]} 32. h5 {[%emt 0:00:00]} Nh8 {[%emt 0:00:02]} 33. Ra7 {[%emt 0:01:23]} Rxa3 {[%emt 0:00:06]} 34. Nh4 {[%emt 0:00:57]} Kg8 {[%emt 0:00:28]} 35. Ra8+ {[%emt 0:00:04]} Kh7 {[%emt 0:00:01]} 36. Ra7 {[%emt 0:00:56]} Kg8 {[%emt 0:00:02]} 37. Nf5 {[%emt 0:00:47]} Nf7 {[%emt 0:01:39]} 38. Ne7+ {[%emt 0:00:53]} Kh7 {[%emt 0:00:08]} 39. Ng6 {[%emt 0:00:45]} Nh8 {[%emt 0:00:08]} 40. Nf8+ {[%emt 0:00:24]} Kg8 {[%emt 0:00:10]} 41. Ne6 {[%emt 0:02:51]} 1-0

[Event "CHN-ch Open 2019"]
[Site "Xinghua"]
[Date "2019.05.19"]
[Round "8.2"]
[White "Xu, Yi"]
[Black "Peng, Xiongjian"]
[Result "0-1"]
[ECO "C41"]
[WhiteElo "2546"]
[BlackElo "2451"]
[Annotator "RC"]
[PlyCount "160"]
[EventDate "2019.05.11"]
[EventType "tourn"]
[EventCountry "CHN"]
[SourceTitle "playchess.com"]
[Source "ChessBase"]
[SourceQuality "1"]
[TimeControl "5400+30"]

1. e4 {[%emt 0:00:00]} d6 {[%emt 0:00:00]} 2. d4 {[%emt 0:00:13]} Nf6 {[%emt 0:00:00]} 3. Nc3 {[%emt 0:00:04]} Nbd7 {[%emt 0:00:00]} 4. Nf3 {[%emt 0:01:42]} e5 {[%emt 0:00:00]} 5. Bc4 {[%emt 0:00:08]} Be7 {[%emt 0:00:01]} 6. O-O {[%emt 0:00:09]} O-O {[%emt 0:00:03]} 7. Re1 {[%emt 0:00:40]} c6 {[%emt 0:00:54]} 8. a4 {[%emt 0:00:06]} a5 {[%emt 0:00:04]} 9. h3 {[%emt 0:00:16]} h6 {[%emt 0:02:39]} 10. Ba2 {[%emt 0:05:36]} Re8 {[%emt 0:00:53]} 11. dxe5 {[%emt 0:05:30]} dxe5 {[%emt 0:01:13]} 12. Be3 {[%emt 0:00:20]} Bb4 {[%emt 0:01:44]} 13. Qd3 {[%emt 0:03:14]} Qe7 {[%emt 0:02:41]} 14. Nh4 {[%emt 0:12:58]} Nc5 {[%emt 0:07:46]} 15. Bxc5 {[%emt 0:06:57]} Bxc5 {[%emt 0:00:06]} 16. Qf3 {[%emt 0:03:31]} Nh7 {[%emt 0:02:27]} 17. Rad1 {[%emt 0:07:07]} Be6 {[%emt 0:05:15]} 18. Bxe6 {[%emt 0:01:45]} Qxe6 {[%emt 0:00:36]} 19. Nf5 {[%emt 0:01:08]} Rad8 {[%emt 0:07:58]} 20. Rxd8 {[%emt 0:02:13]} Rxd8 {[%emt 0:00:07]} 21. Rd1 {[%emt 0:00:04]} Qf6 {[%emt 0:02:16]} 22. Rd3 {[%emt 0:02:12]} Rxd3 {[%emt 0:03:00]} 23. Qxd3 {[%emt 0:01:06]} Nf8 {[%emt 0:01:13]} 24. Ne2 {[%emt 0:01:33]} h5 {[%emt 0:00:45]} 25. Qg3 {[%emt 0:11:07]} Ne6 {[%emt 0:04:12]} 26. Qf3 {[%emt 0:11:20]} Ng5 {[%emt 0:03:49]} 27. Qd3 {[%emt 0:00:15]} g6 {[%emt 0:03:51]} 28. Ne3 {[%emt 0:00:05]} Kg7 {[%emt 0:00:09]} 29. h4 {[%emt 0:04:22]} Ne6 {[%emt 0:00:24]} 30. g3 {[%emt 0:00:01]} Bxe3 {[%emt 0:03:00]} 31. Qxe3 {[%emt 0:00:54]} Qd8 {[%emt 0:00:04]} 32. Nc3 {[%emt 0:03:28]} Qd4 {[%emt 0:01:45]} 33. Kg2 {[%emt 0:02:16]} Nc5 {[%emt 0:03:46]} 34. Kf3 {[%emt 0:00:47]} Ne6 {[%emt 0:03:20]} 35. b3 {[%emt 0:04:56]} Kf6 {[%emt 0:01:24]} 36. Ke2 {[%emt 0:01:52]} Qb4 {[%emt 0:00:04]} 37. Kd1 {[%emt 0:00:37]} Nd4 {[%emt 0:01:01]} 38. Ne2 {[%emt 0:00:32]} Ne6 {[%emt 0:00:33]} 39. Nc1 {[%emt 0:01:40]} b5 {[%emt 0:01:35]} 40. Nd3 {[%emt 0:00:18]} Qc3 {[%emt 0:00:48]} 41. Qd2 {[%emt 0:01:07]} Qa1+ {[%emt 0:00:27]} 42. Qc1 {[%emt 0:00:24]} Qd4 {[%emt 0:00:41]} 43. Qe3 {[%emt 0:00:57]} Qa1+ {[%emt 0:07:19]} 44. Qc1 {[%emt 0:00:01]} Qa2 {[%emt 0:00:19]} 45. Qb2 {[%emt 0:02:23]} Qxb2 {[%emt 0:00:06]} 46. Nxb2 {[%emt 0:00:01]} Nc5 {[%emt 0:00:51]} 47. f3 {[%emt 0:00:24]} Ke6 {[%emt 0:00:07]} 48. Kd2 {[%emt 0:01:52]} Kd6 {[%emt 0:00:06]} 49. Kc3 {[%emt 0:02:48]} f5 {[%emt 0:04:41]} 50. Nd3 {[%emt 0:00:33]} Ne6 {[%emt 0:02:33]} 51. exf5 {[%emt 0:00:28]} gxf5 {[%emt 0:00:04]} 52. f4 {[%emt 0:00:07]} exf4 {[%emt 0:03:15]} 53. gxf4 {[%emt 0:00:11]} bxa4 {[%emt 0:03:06]} 54. bxa4 {[%emt 0:00:07]} Nc5 {[%emt 0:00:05]} 55. Ne5 {[%emt 0:02:05]} Nxa4+ {[%emt 0:00:05]} 56. Kd4 {[%emt 0:00:07]} c5+ {[%emt 0:03:46]} 57. Kc4 {[%emt 0:00:12]} Nb2+ {[%emt 0:01:22]} 58. Kb3 {[%emt 0:00:38]} Nd1 {[%emt 0:00:03]} 59. Ka4 {[%emt 0:01:23]} Kd5 {[%emt 0:01:46]} 60. Nd7 {[%emt 0:00:29]} Ke4 {[%emt 0:01:35]} 61. Nf6+ {[%emt 0:00:06]} Kxf4 {[%emt 0:00:19]} 62. Nxh5+ {[%emt 0:00:04]} Kg4 {[%emt 0:00:49]} 63. Ng7 {[%emt 0:00:05]} Nc3+ {[%emt 0:06:45]} 64. Kb3 {[%emt 0:00:02]} Ne4 {[%emt 0:00:23]} 65. h5 {[%emt 0:01:11]} f4 {[%emt 0:00:27]} 66. h6 {[%emt 0:00:04]} Nf6 {[%emt 0:00:06]} 67. Ne8 {[%emt 0:00:33]} Kg5 {[%emt 0:01:47]} 68. Nd6 {[%emt 0:00:45]} f3 {[%emt 0:01:02]} 69. Ne4+ {[%emt 0:01:16]} Nxe4 {[%emt 0:00:09]} 70. h7 {[%emt 0:00:04]} f2 {[%emt 0:00:08]} 71. h8=Q {[%emt 0:00:05]} f1=Q {[%emt 0:00:04]} 72. Qd8+ {[%emt 0:00:23]} Kf4 {[%emt 0:00:32]} 73. Qf8+ {[%emt 0:02:00]} Ke3 {[%emt 0:00:07]} 74. Qh6+ {[%emt 0:00:11]} Qf4 {[%emt 0:00:23]} 75. Qh3+ {[%emt 0:00:02]} Qf3 {[%emt 0:00:05]} 76. Qh6+ {[%emt 0:00:03]} Kd4+ {[%emt 0:00:53]} 77. Ka4 {[%emt 0:00:27]} Nc3+ {[%emt 0:00:10]} 78. Kxa5 {[%emt 0:00:13]} Qa8+ {[%emt 0:00:05]} 79. Kb6 {[%emt 0:00:03]} Nd5+ {[%emt 0:00:13]} 80. Kb5 {[%emt 0:00:01]} Nc7+ {[%emt 0:00:13]} 0-1

[Event "CHN-ch Open 2019"]
[Site "Xinghua"]
[Date "2019.05.20"]
[Round "9.2"]
[White "Bai, Jinshi"]
[Black "Zhao, Yuanhe"]
[Result "1-0"]
[ECO "A49"]
[WhiteElo "2605"]
[BlackElo "2437"]
[Annotator "ChessBase"]
[PlyCount "105"]
[EventDate "2019.05.11"]
[EventType "tourn"]
[EventCountry "CHN"]
[SourceTitle "playchess.com"]
[Source "ChessBase"]
[SourceQuality "1"]
[TimeControl "5400+30"]

1. d4 {[%emt 0:00:00]} Nf6 {[%emt 0:00:00]} 2. Nf3 {[%emt 0:00:26]} g6 {[%emt 0:00:06]} 3. g3 {[%emt 0:00:21]} Bg7 {[%emt 0:00:17]} 4. Bg2 {[%emt 0:00:09]} O-O {[%emt 0:00:25]} 5. O-O {[%emt 0:00:58]} c5 {[%emt 0:01:02]} 6. dxc5 {[%emt 0:00:50]} Na6 {[%emt 0:06:20]} 7. Be3 {[%emt 0:03:33]} Qc7 {[%emt 0:06:25]} 8. Nc3 {[%emt 0:05:50]} Nxc5 {[%emt 0:01:54]} 9. Nb5 {[%emt 0:00:14]} Qb6 {[%emt 0:02:39]} 10. a4 {[%emt 0:11:45]} Ng4 {[%emt 0:07:47]} 11. Bd4 {[%emt 0:14:18]} Bxd4 {[%emt 0:03:28]} 12. Qxd4 {[%emt 0:00:27]} d6 {[%emt 0:00:10]} 13. b4 {[%emt 0:05:13]} Nxa4 {[%emt 0:02:29]} 14. c4 {[%emt 0:01:43]} Qxd4 {[%emt 0:11:48]} 15. Nfxd4 {[%emt 0:00:08]} Nb6 {[%emt 0:00:10]} 16. c5 {[%emt 0:02:29]} dxc5 {[%emt 0:11:06]} 17. bxc5 {[%emt 0:00:07]} Nd7 {[%emt 0:00:27]} 18. c6 {[%emt 0:03:09]} e5 {[%emt 0:00:39]} 19. Nc7 {[%emt 0:09:25]} exd4 {[%emt 0:02:46]} 20. cxd7 {[%emt 0:02:37]} Bxd7 {[%emt 0:00:08]} 21. Nxa8 {[%emt 0:00:05]} Rxa8 {[%emt 0:00:04]} 22. Bxb7 {[%emt 0:00:07]} Re8 {[%emt 0:00:05]} 23. Rxa7 {[%emt 0:03:14]} Bb5 {[%emt 0:00:11]} 24. Bd5 {[%emt 0:07:58]} Nh6 {[%emt 0:00:19]} 25. Rd1 {[%emt 0:01:26]} Rxe2 {[%emt 0:06:48]} 26. Rxd4 {[%emt 0:00:21]} Re1+ {[%emt 0:03:08]} 27. Kg2 {[%emt 0:00:06]} Bf1+ {[%emt 0:04:16]} 28. Kf3 {[%emt 0:00:06]} Re5 {[%emt 0:00:22]} 29. g4 {[%emt 0:03:00]} Bh3 {[%emt 0:05:35]} 30. Ba2 {[%emt 0:10:05]} Rg5 {[%emt 0:03:38]} 31. Raa4 {[%emt 0:00:11]} Kg7 {[%emt 0:06:05]} 32. Kg3 {[%emt 0:00:57]} Bxg4 {[%emt 0:00:08]} 33. Rxg4 {[%emt 0:00:32]} Nxg4 {[%emt 0:00:07]} 34. Rxg4 {[%emt 0:00:04]} Ra5 {[%emt 0:00:03]} 35. Bc4 {[%emt 0:00:35]} Ra3+ {[%emt 0:00:09]} 36. f3 {[%emt 0:00:10]} Ra7 {[%emt 0:03:16]} 37. Rd4 {[%emt 0:00:28]} h6 {[%emt 0:00:30]} 38. Rd6 {[%emt 0:00:17]} Ra4 {[%emt 0:01:42]} 39. Rc6 {[%emt 0:00:48]} Ra7 {[%emt 0:00:05]} 40. Kf4 {[%emt 0:00:04]} Kf8 {[%emt 0:00:19]} 41. Ke5 {[%emt 0:00:29]} Kg7 {[%emt 0:01:56]} 42. Bd5 {[%emt 0:02:43]} h5 {[%emt 0:00:37]} 43. Rb6 {[%emt 0:01:25]} Re7+ {[%emt 0:00:06]} 44. Kd4 {[%emt 0:01:47]} Re2 {[%emt 0:00:46]} 45. Rb7 {[%emt 0:00:42]} Rxh2 {[%emt 0:00:06]} 46. Rxf7+ {[%emt 0:00:05]} Kh6 {[%emt 0:00:03]} 47. Ke5 {[%emt 0:00:37]} h4 {[%emt 0:01:23]} 48. Kf6 {[%emt 0:01:45]} Rg2 {[%emt 0:03:34]} 49. Rc7 {[%emt 0:02:20]} Rd2 {[%emt 0:01:38]} 50. Rc8 {[%emt 0:00:25]} Kh7 {[%emt 0:00:04]} 51. Bg8+ {[%emt 0:00:05]} Kh6 {[%emt 0:00:04]} 52. Be6 {[%emt 0:00:06]} Kh7 {[%emt 0:00:06]} 53. Rc4 {[%emt 0:00:04]} 1-0